{"text_format":"1","workbook":"xlsx","n_sheets":2,"sheets":["Source","Salim"],"not_rendered":{"charts":0,"images":4,"macros":1,"external_links":1,"defined_names":4,"comments":0,"pivot_tables":0},"unopened":[],"bounds":{"document_bytes":16777216,"sheet_cells":100000,"rows_first":2000,"rows_last":500,"rows_between":2000,"halvings":0,"cell_chars":16384,"cell_head_chars":4096},"cells_cut":0,"cells_raw":0,"read":"whole","date_system":"1900"}

{"sheet":"Source","index":0,"n_rows":34,"n_cols":2,"rows_kept":34,"cut":false,"hidden":false,"merged":[[6,3,18,8]]}
[]
["الاسم","المادة"]
["معلم 1","تربية اسلامية"]
["معلم 2","تربية اسلامية"]
["معلم 3","تربية اسلامية"]
["معلم 4","تربية اسلامية"]
["معلم 5","تربية اسلامية"]
["معلم 6","لغة انجليزية"]
["معلم 7","لغة انجليزية"]
["معلم 8","لغة انجليزية"]
["معلم 9","لغة انجليزية"]
["معلم 10","لغة انجليزية"]
["معلم 11","لغة انجليزية"]
["معلم 12","لغة انجليزية"]
["معلم 13","لغة انجليزية"]
["معلم 14","لغة انجليزية"]
["معلم 15","لغة انجليزية"]
["معلم 16","لغة انجليزية"]
["معلم 17","لغة انجليزية"]
["معلم 18","لغة انجليزية"]
["معلم 19","لغة انجليزية"]
["معلم 102","لغة انجليزية"]
["معلم 20","لغة عربية"]
["معلم 21","لغة عربية"]
["معلم 22","لغة عربية"]
["معلم 23","لغة عربية"]
["معلم 24","لغة عربية"]
["معلم 25","لغة عربية"]
["معلم 26","لغة عربية"]
["معلم 27","لغة عربية"]
["معلم 28","لغة عربية"]
["معلم 29","لغة عربية"]
["معلم 30","لغة عربية"]
["معلم 31","لغة عربية"]

{"sheet":"Salim","index":1,"n_rows":100,"n_cols":13,"rows_kept":100,"cut":false,"hidden":false,"merged":[]}
[]
[null,null,"لغة انجليزية",null,null,null,null,"معلم 6"]
[]
[null,null,null,null,null,null,null,null,null,null,null,{"$f":"IF(ROWS($A$1:A1)>COUNTIF(Source!$B$3:$B$100,$C$2),\"\",$C$2)","v":"لغة انجليزية"},"معلم 6"]
[null,null,null,null,null,null,null,null,null,null,null,{"$f":"IF(ROWS($A$1:A2)>COUNTIF(Source!$B$3:$B$100,$C$2),\"\",$C$2)","v":"لغة انجليزية"},"معلم 7"]
[null,null,null,null,null,null,null,null,null,null,null,{"$f":"IF(ROWS($A$1:A3)>COUNTIF(Source!$B$3:$B$100,$C$2),\"\",$C$2)","v":"لغة انجليزية"},"معلم 8"]
[null,null,null,null,null,null,null,null,null,null,null,{"$f":"IF(ROWS($A$1:A4)>COUNTIF(Source!$B$3:$B$100,$C$2),\"\",$C$2)","v":"لغة انجليزية"},"معلم 9"]
[null,null,null,null,null,null,null,null,null,null,null,{"$f":"IF(ROWS($A$1:A5)>COUNTIF(Source!$B$3:$B$100,$C$2),\"\",$C$2)","v":"لغة انجليزية"},"معلم 10"]
[null,null,null,null,null,null,null,null,null,null,null,{"$f":"IF(ROWS($A$1:A6)>COUNTIF(Source!$B$3:$B$100,$C$2),\"\",$C$2)","v":"لغة انجليزية"},"معلم 11"]
[null,null,null,null,null,null,null,null,null,null,null,{"$f":"IF(ROWS($A$1:A7)>COUNTIF(Source!$B$3:$B$100,$C$2),\"\",$C$2)","v":"لغة انجليزية"},"معلم 12"]
[null,null,null,null,null,null,null,null,null,null,null,{"$f":"IF(ROWS($A$1:A8)>COUNTIF(Source!$B$3:$B$100,$C$2),\"\",$C$2)","v":"لغة انجليزية"},"معلم 13"]
[null,null,null,null,null,null,null,null,null,null,null,{"$f":"IF(ROWS($A$1:A9)>COUNTIF(Source!$B$3:$B$100,$C$2),\"\",$C$2)","v":"لغة انجليزية"},"معلم 14"]
[null,null,null,null,null,null,null,null,null,null,null,{"$f":"IF(ROWS($A$1:A10)>COUNTIF(Source!$B$3:$B$100,$C$2),\"\",$C$2)","v":"لغة انجليزية"},"معلم 15"]
[null,null,null,null,null,null,null,null,null,null,null,{"$f":"IF(ROWS($A$1:A11)>COUNTIF(Source!$B$3:$B$100,$C$2),\"\",$C$2)","v":"لغة انجليزية"},"معلم 16"]
[null,null,null,null,null,null,null,null,null,null,null,{"$f":"IF(ROWS($A$1:A12)>COUNTIF(Source!$B$3:$B$100,$C$2),\"\",$C$2)","v":"لغة انجليزية"},"معلم 17"]
[null,null,null,null,null,null,null,null,null,null,null,{"$f":"IF(ROWS($A$1:A13)>COUNTIF(Source!$B$3:$B$100,$C$2),\"\",$C$2)","v":"لغة انجليزية"},"معلم 18"]
[null,null,null,null,null,null,null,null,null,null,null,{"$f":"IF(ROWS($A$1:A14)>COUNTIF(Source!$B$3:$B$100,$C$2),\"\",$C$2)","v":"لغة انجليزية"},"معلم 19"]
[null,null,null,null,null,null,null,null,null,null,null,{"$f":"IF(ROWS($A$1:A15)>COUNTIF(Source!$B$3:$B$100,$C$2),\"\",$C$2)","v":"لغة انجليزية"},"معلم 102"]
[null,null,null,null,null,null,null,null,null,null,null,{"$f":"IF(ROWS($A$1:A16)>COUNTIF(Source!$B$3:$B$100,$C$2),\"\",$C$2)","v":""}]
[null,null,null,null,null,null,null,null,null,null,null,{"$f":"IF(ROWS($A$1:A17)>COUNTIF(Source!$B$3:$B$100,$C$2),\"\",$C$2)","v":""}]
[null,null,null,null,null,null,null,null,null,null,null,{"$f":"IF(ROWS($A$1:A18)>COUNTIF(Source!$B$3:$B$100,$C$2),\"\",$C$2)","v":""}]
[null,null,null,null,null,null,null,null,null,null,null,{"$f":"IF(ROWS($A$1:A19)>COUNTIF(Source!$B$3:$B$100,$C$2),\"\",$C$2)","v":""}]
[null,null,null,null,null,null,null,null,null,null,null,{"$f":"IF(ROWS($A$1:A20)>COUNTIF(Source!$B$3:$B$100,$C$2),\"\",$C$2)","v":""}]
[null,null,null,null,null,null,null,null,null,null,null,{"$f":"IF(ROWS($A$1:A21)>COUNTIF(Source!$B$3:$B$100,$C$2),\"\",$C$2)","v":""}]
[null,null,null,null,null,null,null,null,null,null,null,{"$f":"IF(ROWS($A$1:A22)>COUNTIF(Source!$B$3:$B$100,$C$2),\"\",$C$2)","v":""}]
[null,null,null,null,null,null,null,null,null,null,null,{"$f":"IF(ROWS($A$1:A23)>COUNTIF(Source!$B$3:$B$100,$C$2),\"\",$C$2)","v":""}]
[null,null,null,null,null,null,null,null,null,null,null,{"$f":"IF(ROWS($A$1:A24)>COUNTIF(Source!$B$3:$B$100,$C$2),\"\",$C$2)","v":""}]
[null,null,null,null,null,null,null,null,null,null,null,{"$f":"IF(ROWS($A$1:A25)>COUNTIF(Source!$B$3:$B$100,$C$2),\"\",$C$2)","v":""}]
[null,null,null,null,null,null,null,null,null,null,null,{"$f":"IF(ROWS($A$1:A26)>COUNTIF(Source!$B$3:$B$100,$C$2),\"\",$C$2)","v":""}]
[null,null,null,null,null,null,null,null,null,null,null,{"$f":"IF(ROWS($A$1:A27)>COUNTIF(Source!$B$3:$B$100,$C$2),\"\",$C$2)","v":""}]
[null,null,null,null,null,null,null,null,null,null,null,{"$f":"IF(ROWS($A$1:A28)>COUNTIF(Source!$B$3:$B$100,$C$2),\"\",$C$2)","v":""}]
[null,null,null,null,null,null,null,null,null,null,null,{"$f":"IF(ROWS($A$1:A29)>COUNTIF(Source!$B$3:$B$100,$C$2),\"\",$C$2)","v":""}]
[null,null,null,null,null,null,null,null,null,null,null,{"$f":"IF(ROWS($A$1:A30)>COUNTIF(Source!$B$3:$B$100,$C$2),\"\",$C$2)","v":""}]
[null,null,null,null,null,null,null,null,null,null,null,{"$f":"IF(ROWS($A$1:A31)>COUNTIF(Source!$B$3:$B$100,$C$2),\"\",$C$2)","v":""}]
[null,null,null,null,null,null,null,null,null,null,null,{"$f":"IF(ROWS($A$1:A32)>COUNTIF(Source!$B$3:$B$100,$C$2),\"\",$C$2)","v":""}]
[null,null,null,null,null,null,null,null,null,null,null,{"$f":"IF(ROWS($A$1:A33)>COUNTIF(Source!$B$3:$B$100,$C$2),\"\",$C$2)","v":""}]
[null,null,null,null,null,null,null,null,null,null,null,{"$f":"IF(ROWS($A$1:A34)>COUNTIF(Source!$B$3:$B$100,$C$2),\"\",$C$2)","v":""}]
[null,null,null,null,null,null,null,null,null,null,null,{"$f":"IF(ROWS($A$1:A35)>COUNTIF(Source!$B$3:$B$100,$C$2),\"\",$C$2)","v":""}]
[null,null,null,null,null,null,null,null,null,null,null,{"$f":"IF(ROWS($A$1:A36)>COUNTIF(Source!$B$3:$B$100,$C$2),\"\",$C$2)","v":""}]
[null,null,null,null,null,null,null,null,null,null,null,{"$f":"IF(ROWS($A$1:A37)>COUNTIF(Source!$B$3:$B$100,$C$2),\"\",$C$2)","v":""}]
[null,null,null,null,null,null,null,null,null,null,null,{"$f":"IF(ROWS($A$1:A38)>COUNTIF(Source!$B$3:$B$100,$C$2),\"\",$C$2)","v":""}]
[null,null,null,null,null,null,null,null,null,null,null,{"$f":"IF(ROWS($A$1:A39)>COUNTIF(Source!$B$3:$B$100,$C$2),\"\",$C$2)","v":""}]
[null,null,null,null,null,null,null,null,null,null,null,{"$f":"IF(ROWS($A$1:A40)>COUNTIF(Source!$B$3:$B$100,$C$2),\"\",$C$2)","v":""}]
[null,null,null,null,null,null,null,null,null,null,null,{"$f":"IF(ROWS($A$1:A41)>COUNTIF(Source!$B$3:$B$100,$C$2),\"\",$C$2)","v":""}]
[null,null,null,null,null,null,null,null,null,null,null,{"$f":"IF(ROWS($A$1:A42)>COUNTIF(Source!$B$3:$B$100,$C$2),\"\",$C$2)","v":""}]
[null,null,null,null,null,null,null,null,null,null,null,{"$f":"IF(ROWS($A$1:A43)>COUNTIF(Source!$B$3:$B$100,$C$2),\"\",$C$2)","v":""}]
[null,null,null,null,null,null,null,null,null,null,null,{"$f":"IF(ROWS($A$1:A44)>COUNTIF(Source!$B$3:$B$100,$C$2),\"\",$C$2)","v":""}]
[null,null,null,null,null,null,null,null,null,null,null,{"$f":"IF(ROWS($A$1:A45)>COUNTIF(Source!$B$3:$B$100,$C$2),\"\",$C$2)","v":""}]
[null,null,null,null,null,null,null,null,null,null,null,{"$f":"IF(ROWS($A$1:A46)>COUNTIF(Source!$B$3:$B$100,$C$2),\"\",$C$2)","v":""}]
[null,null,null,null,null,null,null,null,null,null,null,{"$f":"IF(ROWS($A$1:A47)>COUNTIF(Source!$B$3:$B$100,$C$2),\"\",$C$2)","v":""}]
[null,null,null,null,null,null,null,null,null,null,null,{"$f":"IF(ROWS($A$1:A48)>COUNTIF(Source!$B$3:$B$100,$C$2),\"\",$C$2)","v":""}]
[null,null,null,null,null,null,null,null,null,null,null,{"$f":"IF(ROWS($A$1:A49)>COUNTIF(Source!$B$3:$B$100,$C$2),\"\",$C$2)","v":""}]
[null,null,null,null,null,null,null,null,null,null,null,{"$f":"IF(ROWS($A$1:A50)>COUNTIF(Source!$B$3:$B$100,$C$2),\"\",$C$2)","v":""}]
[null,null,null,null,null,null,null,null,null,null,null,{"$f":"IF(ROWS($A$1:A51)>COUNTIF(Source!$B$3:$B$100,$C$2),\"\",$C$2)","v":""}]
[null,null,null,null,null,null,null,null,null,null,null,{"$f":"IF(ROWS($A$1:A52)>COUNTIF(Source!$B$3:$B$100,$C$2),\"\",$C$2)","v":""}]
[null,null,null,null,null,null,null,null,null,null,null,{"$f":"IF(ROWS($A$1:A53)>COUNTIF(Source!$B$3:$B$100,$C$2),\"\",$C$2)","v":""}]
[null,null,null,null,null,null,null,null,null,null,null,{"$f":"IF(ROWS($A$1:A54)>COUNTIF(Source!$B$3:$B$100,$C$2),\"\",$C$2)","v":""}]
[null,null,null,null,null,null,null,null,null,null,null,{"$f":"IF(ROWS($A$1:A55)>COUNTIF(Source!$B$3:$B$100,$C$2),\"\",$C$2)","v":""}]
[null,null,null,null,null,null,null,null,null,null,null,{"$f":"IF(ROWS($A$1:A56)>COUNTIF(Source!$B$3:$B$100,$C$2),\"\",$C$2)","v":""}]
[null,null,null,null,null,null,null,null,null,null,null,{"$f":"IF(ROWS($A$1:A57)>COUNTIF(Source!$B$3:$B$100,$C$2),\"\",$C$2)","v":""}]
[null,null,null,null,null,null,null,null,null,null,null,{"$f":"IF(ROWS($A$1:A58)>COUNTIF(Source!$B$3:$B$100,$C$2),\"\",$C$2)","v":""}]
[null,null,null,null,null,null,null,null,null,null,null,{"$f":"IF(ROWS($A$1:A59)>COUNTIF(Source!$B$3:$B$100,$C$2),\"\",$C$2)","v":""}]
[null,null,null,null,null,null,null,null,null,null,null,{"$f":"IF(ROWS($A$1:A60)>COUNTIF(Source!$B$3:$B$100,$C$2),\"\",$C$2)","v":""}]
[null,null,null,null,null,null,null,null,null,null,null,{"$f":"IF(ROWS($A$1:A61)>COUNTIF(Source!$B$3:$B$100,$C$2),\"\",$C$2)","v":""}]
[null,null,null,null,null,null,null,null,null,null,null,{"$f":"IF(ROWS($A$1:A62)>COUNTIF(Source!$B$3:$B$100,$C$2),\"\",$C$2)","v":""}]
[null,null,null,null,null,null,null,null,null,null,null,{"$f":"IF(ROWS($A$1:A63)>COUNTIF(Source!$B$3:$B$100,$C$2),\"\",$C$2)","v":""}]
[null,null,null,null,null,null,null,null,null,null,null,{"$f":"IF(ROWS($A$1:A64)>COUNTIF(Source!$B$3:$B$100,$C$2),\"\",$C$2)","v":""}]
[null,null,null,null,null,null,null,null,null,null,null,{"$f":"IF(ROWS($A$1:A65)>COUNTIF(Source!$B$3:$B$100,$C$2),\"\",$C$2)","v":""}]
[null,null,null,null,null,null,null,null,null,null,null,{"$f":"IF(ROWS($A$1:A66)>COUNTIF(Source!$B$3:$B$100,$C$2),\"\",$C$2)","v":""}]
[null,null,null,null,null,null,null,null,null,null,null,{"$f":"IF(ROWS($A$1:A67)>COUNTIF(Source!$B$3:$B$100,$C$2),\"\",$C$2)","v":""}]
[null,null,null,null,null,null,null,null,null,null,null,{"$f":"IF(ROWS($A$1:A68)>COUNTIF(Source!$B$3:$B$100,$C$2),\"\",$C$2)","v":""}]
[null,null,null,null,null,null,null,null,null,null,null,{"$f":"IF(ROWS($A$1:A69)>COUNTIF(Source!$B$3:$B$100,$C$2),\"\",$C$2)","v":""}]
[null,null,null,null,null,null,null,null,null,null,null,{"$f":"IF(ROWS($A$1:A70)>COUNTIF(Source!$B$3:$B$100,$C$2),\"\",$C$2)","v":""}]
[null,null,null,null,null,null,null,null,null,null,null,{"$f":"IF(ROWS($A$1:A71)>COUNTIF(Source!$B$3:$B$100,$C$2),\"\",$C$2)","v":""}]
[null,null,null,null,null,null,null,null,null,null,null,{"$f":"IF(ROWS($A$1:A72)>COUNTIF(Source!$B$3:$B$100,$C$2),\"\",$C$2)","v":""}]
[null,null,null,null,null,null,null,null,null,null,null,{"$f":"IF(ROWS($A$1:A73)>COUNTIF(Source!$B$3:$B$100,$C$2),\"\",$C$2)","v":""}]
[null,null,null,null,null,null,null,null,null,null,null,{"$f":"IF(ROWS($A$1:A74)>COUNTIF(Source!$B$3:$B$100,$C$2),\"\",$C$2)","v":""}]
[null,null,null,null,null,null,null,null,null,null,null,{"$f":"IF(ROWS($A$1:A75)>COUNTIF(Source!$B$3:$B$100,$C$2),\"\",$C$2)","v":""}]
[null,null,null,null,null,null,null,null,null,null,null,{"$f":"IF(ROWS($A$1:A76)>COUNTIF(Source!$B$3:$B$100,$C$2),\"\",$C$2)","v":""}]
[null,null,null,null,null,null,null,null,null,null,null,{"$f":"IF(ROWS($A$1:A77)>COUNTIF(Source!$B$3:$B$100,$C$2),\"\",$C$2)","v":""}]
[null,null,null,null,null,null,null,null,null,null,null,{"$f":"IF(ROWS($A$1:A78)>COUNTIF(Source!$B$3:$B$100,$C$2),\"\",$C$2)","v":""}]
[null,null,null,null,null,null,null,null,null,null,null,{"$f":"IF(ROWS($A$1:A79)>COUNTIF(Source!$B$3:$B$100,$C$2),\"\",$C$2)","v":""}]
[null,null,null,null,null,null,null,null,null,null,null,{"$f":"IF(ROWS($A$1:A80)>COUNTIF(Source!$B$3:$B$100,$C$2),\"\",$C$2)","v":""}]
[null,null,null,null,null,null,null,null,null,null,null,{"$f":"IF(ROWS($A$1:A81)>COUNTIF(Source!$B$3:$B$100,$C$2),\"\",$C$2)","v":""}]
[null,null,null,null,null,null,null,null,null,null,null,{"$f":"IF(ROWS($A$1:A82)>COUNTIF(Source!$B$3:$B$100,$C$2),\"\",$C$2)","v":""}]
[null,null,null,null,null,null,null,null,null,null,null,{"$f":"IF(ROWS($A$1:A83)>COUNTIF(Source!$B$3:$B$100,$C$2),\"\",$C$2)","v":""}]
[null,null,null,null,null,null,null,null,null,null,null,{"$f":"IF(ROWS($A$1:A84)>COUNTIF(Source!$B$3:$B$100,$C$2),\"\",$C$2)","v":""}]
[null,null,null,null,null,null,null,null,null,null,null,{"$f":"IF(ROWS($A$1:A85)>COUNTIF(Source!$B$3:$B$100,$C$2),\"\",$C$2)","v":""}]
[null,null,null,null,null,null,null,null,null,null,null,{"$f":"IF(ROWS($A$1:A86)>COUNTIF(Source!$B$3:$B$100,$C$2),\"\",$C$2)","v":""}]
[null,null,null,null,null,null,null,null,null,null,null,{"$f":"IF(ROWS($A$1:A87)>COUNTIF(Source!$B$3:$B$100,$C$2),\"\",$C$2)","v":""}]
[null,null,null,null,null,null,null,null,null,null,null,{"$f":"IF(ROWS($A$1:A88)>COUNTIF(Source!$B$3:$B$100,$C$2),\"\",$C$2)","v":""}]
[null,null,null,null,null,null,null,null,null,null,null,{"$f":"IF(ROWS($A$1:A89)>COUNTIF(Source!$B$3:$B$100,$C$2),\"\",$C$2)","v":""}]
[null,null,null,null,null,null,null,null,null,null,null,{"$f":"IF(ROWS($A$1:A90)>COUNTIF(Source!$B$3:$B$100,$C$2),\"\",$C$2)","v":""}]
[null,null,null,null,null,null,null,null,null,null,null,{"$f":"IF(ROWS($A$1:A91)>COUNTIF(Source!$B$3:$B$100,$C$2),\"\",$C$2)","v":""}]
[null,null,null,null,null,null,null,null,null,null,null,{"$f":"IF(ROWS($A$1:A92)>COUNTIF(Source!$B$3:$B$100,$C$2),\"\",$C$2)","v":""}]
[null,null,null,null,null,null,null,null,null,null,null,{"$f":"IF(ROWS($A$1:A93)>COUNTIF(Source!$B$3:$B$100,$C$2),\"\",$C$2)","v":""}]
[null,null,null,null,null,null,null,null,null,null,null,{"$f":"IF(ROWS($A$1:A94)>COUNTIF(Source!$B$3:$B$100,$C$2),\"\",$C$2)","v":""}]
[null,null,null,null,null,null,null,null,null,null,null,{"$f":"IF(ROWS($A$1:A95)>COUNTIF(Source!$B$3:$B$100,$C$2),\"\",$C$2)","v":""}]
[null,null,null,null,null,null,null,null,null,null,null,{"$f":"IF(ROWS($A$1:A96)>COUNTIF(Source!$B$3:$B$100,$C$2),\"\",$C$2)","v":""}]
[null,null,null,null,null,null,null,null,null,null,null,{"$f":"IF(ROWS($A$1:A97)>COUNTIF(Source!$B$3:$B$100,$C$2),\"\",$C$2)","v":""}]